{"text_format":"2","workbook":"xlsx","n_sheets":7,"sheets":["2D","2M","2S","3T","3P","4P","Segédlap"],"not_rendered":{"charts":0,"images":0,"macros":0,"external_links":3,"defined_names":2,"comments":0,"pivot_tables":0},"unopened":[],"bounds":{"document_bytes":16777216,"sheet_cells":100000,"run_cost":"one","rows_first":2000,"rows_last":500,"rows_between":2000,"halvings":0,"cell_chars":16384,"cell_head_chars":4096},"cells_cut":0,"cells_raw":0,"read":"whole","date_system":"1900"}

{"sheet":"2D","index":0,"n_rows":19,"n_cols":20,"rows_kept":19,"cut":false,"hidden":false,"merged":[[0,0,0,6],[4,2,4,5],[4,8,4,12],[6,0,7,0],[6,1,7,1],[6,2,7,2],[6,3,7,3],[6,4,7,4],[6,19,7,19],[18,0,18,3],[19,0,19,3],[6,13,7,13],[6,14,7,14],[6,15,7,15],[6,16,7,16],[6,17,7,17],[6,18,7,18],[6,5,7,5],[6,6,7,6],[6,7,6,8],[6,9,6,10],[6,11,7,11],[6,12,7,12]]}
["Nem tanári mesterszakot követő egyszakos tanári mesterképzés (2 félév, 60 kredit)"]
[]
[]
[]
["KÉPZÉS kódja, neve:","MTKBMAG_2D",{"$f":"VLOOKUP($B$5,[3]Segédlap!A:B,2,0)","v":"magyar nyelv és irodalom szakos tanár"},{"$nulls":4},"TAGOZAT:","Mindkettőt megadom egy táblázatban"]
["Tanári KKK:","https://uj.jogtar.hu/#doc/db/1/id/A1300008.EMM/ts/20211230/lr/chain4"]
["MÉRFÖLDKŐ (önálló csoportosító sor) KÓDJA","TÁRGYCSOPORT KÓDJA","TÁRGYKÓD","MK/TCS/tárgy NEVE/CÍME","TÁRGY TÍPUSA","TÁRGY-KÖVETELMÉNY","FELVÉTEL TÍPUSA","ÓRASZÁM",null,"FÉLÉV ÉS KREDIT",null,"AJÁNLOTT FÉLÉV","KREDIT-SZÁM","TÁRGY(CSOPORT)-FELELŐS Neptun kódja","TÁRGY(CSOPORT)-FELELŐS neve","VÉGLEGES IDŐSZAK (TELJESÍTÉS)","VÉGLEGES IDŐSZAK (FELVÉTEL)","ELŐZETES VIZSGAFELTÉTEL","ÚJ","Tartalmában nem változott, így összevonható az előző KKK szerinti alábbi tárggyal"]
[{"$nulls":7},"heti","féléves","1.","2."]
["MK-SZM",null,null,"Szakmódszertan","nincs megadva","nincs megadva","kötelező",{"$nulls":5},10,{"$nulls":5},"X"]
[null,null,"RK2D-MAG-SZM1","A magyar nyelv és irodalom oktatásának elméleti alapjai","szeminárium","gyakorlati jegy","kötelező",2,9,2,null,1,2,"WR1BAF","Zsigriné dr. Sejtes Györgyi",null,null,null,"X"]
[null,null,"RK2D-MAG-SZM2","Az irodalomtanítás gyakorlata ","szeminárium","gyakorlati jegy","kötelező",2,9,2,null,1,2,"WR1BAF","Zsigriné dr. Sejtes Györgyi",null,null,null,"X"]
[null,null,"RK2D-MAG-SZM3","Az anyanyelvtanítás gyakorlata","szeminárium","gyakorlati jegy","kötelező",2,9,null,2,2,2,"WR1BAF","Zsigriné dr. Sejtes Györgyi",null,null,null,"X"]
[null,null,"RK2D-MAG-SZM4","Tanítást kísérő szakmódszertani szeminárium","szeminárium","gyakorlati jegy","kötelező",2,9,null,2,2,2]
[null,null,"RK2D-MAG-SZMSZV1","Magyar nyelv és irodalom tanítása a digitális kollaborációs térben","szeminárium","gyakorlati jegy","kötelezően választható",2,9,2,null,1,2,"WR1BAF","Zsigriné dr. Sejtes Györgyi",null,null,null,"X"]
[null,null,"RK2D-MAG-SZMSZV2","Szövegtan és tanulás","szeminárium","gyakorlati jegy","kötelezően választható",2,9,2,null,1,2,"WR1BAF","Zsigriné dr. Sejtes Györgyi",null,null,null,"X"]
["MK-TGY",null,null,"Szakterületi tanítási gyakorlat","nincs megadva","nincs megadva","kötelező",null,null,null,2,2,2,{"$nulls":5},"X"]
[]
[{"$nulls":8},"Előírt kredit:",6,6,null,12]
[{"$nulls":8},"Számolt kredit:",{"$f":"SUM(J10:J15)","v":8},{"$f":"SUM(K10:K15)","v":4}]

{"sheet":"2M","index":1,"n_rows":15,"n_cols":19,"rows_kept":15,"cut":false,"hidden":false,"merged":[[0,0,0,6],[6,13,7,13],[4,2,4,5],[4,8,4,13],[6,0,7,0],[6,1,7,1],[6,2,7,2],[6,3,7,3],[6,4,7,4],[6,5,7,5],[6,6,7,6],[6,7,6,8],[6,9,6,10],[6,12,7,12],[6,14,7,14],[6,15,7,15],[6,16,7,16],[6,17,7,17],[6,18,7,18]]}
["Mesterképzéssel párhuzamos tanárképzés"]
[]
[]
[]
["KÉPZÉS kódja, neve:","MTKBMAG_2M","magyar nyelv és irodalom szakos tanár (mesterképzéssel párhuzamosan)",{"$nulls":4},"TAGOZAT:","Mindkettőt megadom egy táblázatban"]
[]
["MÉRFÖLDKŐ (önálló csoportosító sor) KÓDJA","TÁRGYCSOPORT KÓDJA","TÁRGYKÓD","MK/TCS/tárgy NEVE/CÍME","TÁRGY TÍPUSA","TÁRGY-KÖVETELMÉNY","FELVÉTEL TÍPUSA","ÓRASZÁM",null,"FÉLÉV ÉS KREDIT",null,null,"AJÁNLOTT FÉLÉV","KREDIT-SZÁM","TÁRGY(CSOPORT)-FELELŐS Neptun kódja","TÁRGY(CSOPORT)-FELELŐS neve","VÉGLEGES IDŐSZAK (TELJESÍTÉS)","VÉGLEGES IDŐSZAK (FELVÉTEL)","ELŐZETES VIZSGAFELTÉTEL"]
[{"$nulls":7},"heti","féléves","1.","2.","3."]
["MK-SZM",null,null,"Szakmódszertan","nincs megadva","nincs megadva","kötelező",{"$nulls":6},10]
[null,null,"RK2M-MAG-SZM1","A magyar nyelv és irodalom oktatásának elméleti alapjai","szeminárium","gyakorlati jegy","kötelező",2,9,2,null,null,1,2,"WR1BAF","Zsigriné dr. Sejtes Györgyi"]
[null,null,"RK2M-MAG-SZM2","Az irodalomtanítás gyakorlata ","szeminárium","gyakorlati jegy","kötelező",2,9,2,null,null,1,2,"WR1BAF","Zsigriné dr. Sejtes Györgyi"]
[null,null,"RK2M-MAG-SZM3","Az anyanyelvtanítás gyakorlata","szeminárium","gyakorlati jegy","kötelező",2,9,null,2,null,2,2,"WR1BAF","Zsigriné dr. Sejtes Györgyi"]
[null,null,"RK2M-MAG-SZM4","Tanítást kísérő szakmódszertani szeminárium","szeminárium","gyakorlati jegy","kötelező",2,9,null,null,2,2,2]
[null,null,"RK2M-MAG-SZMSZV1","Magyar nyelv és irodalom tanítása a digitális kollaborációs térben","szeminárium","gyakorlati jegy","kötelezően választható",2,9,2,null,null,1,2,"WR1BAF","Zsigriné dr. Sejtes Györgyi"]
[null,null,"RK2M-MAG-SZMSZV2","Szövegtan és tanulás","szeminárium","gyakorlati jegy","kötelezően választható",2,9,2,null,null,1,2,"WR1BAF","Zsigriné dr. Sejtes Györgyi"]

{"sheet":"2S","index":2,"n_rows":40,"n_cols":19,"rows_kept":40,"cut":false,"hidden":false,"merged":[[0,0,0,7],[4,2,4,4],[4,8,4,11],[6,0,7,0],[6,1,7,1],[6,2,7,2],[6,3,7,3],[6,4,7,4],[6,5,7,5],[6,16,7,16],[6,17,7,17],[6,18,7,18],[6,6,7,6],[6,7,7,7],[6,8,6,9],[6,10,6,11],[6,12,7,12],[6,13,7,13],[39,0,39,3],[40,0,40,3],[41,0,41,3],[6,14,7,14],[6,15,7,15]]}
["Szaktanári mesterképzés (2 félév, 60 kredit) – Ped. 1. besorolással "]
[]
[]
[]
["KÉPZÉS kódja, neve:","MTSSMAG_2S",{"$f":"VLOOKUP($B$5,[3]Segédlap!A:B,2,0)","v":"magyar nyelv és irodalom szakos szaktanár"},{"$nulls":4},"TAGOZAT:","Mindkettőt megadom egy táblázatban"]
[]
["KKK 8. szerinti ismeretkör: kredittartomány","MÉRFÖLDKŐ (önálló csoportosító sor) KÓDJA","TÁRGYCSOPORT KÓDJA","TÁRGYKÓD","MK/TCS/tárgy NEVE/CÍME","TÁRGY TÍPUSA","TÁRGY-KÖVETELMÉNY","FELVÉTEL TÍPUSA","ÓRASZÁM",null,"FÉLÉV ÉS KREDIT",null,"AJÁNLOTT FÉLÉV","KREDIT-SZÁM","TÁRGY(CSOPORT)-FELELŐS Neptun kódja","TÁRGY(CSOPORT)-FELELŐS neve","VÉGLEGES IDŐSZAK (TELJESÍTÉS)","VÉGLEGES IDŐSZAK (FELVÉTEL)","ELŐZETES VIZSGAFELTÉTEL"]
[{"$nulls":8},"heti","féléves","1.","2."]
[null,"MK-KOT",null,null,"Kötelező szakmai tárgyak","nincs megadva","nincs megadva","kötelező",{"$nulls":5},45]
["Nyelvtudományi ismeretek (21 kredit)",null,null,"RK2S-MAG-KOT01","Grammatikai ismeretek: alaktani és mondattani elemzések","szeminárium","gyakorlati jegy","kötelező",2,9,3,null,1,3,"EMQWVX","Németh Miklós"]
[null,null,null,"RK2S-MAG-KOT02","Szöveg és stílus előadás","előadás","kollokvium","kötelező",2,9,3,null,1,3,"GHO3PX","Schirm Anita"]
[null,null,null,"RK2S-MAG-KOT03","Kommunikáció és retorika előadás                                                                                     ","előadás","kollokvium","kötelező",2,9,3,null,1,3,"GHO3PX","Schirm Anita"]
[null,null,null,"RK2S-MAG-KOT04","A pragmatikai, a jelentésbeli és a nyelvtani szintek, diskurzuselemzés szeminárium","szeminárium","gyakorlati jegy","kötelező",2,9,null,3,2,3,"BQEUFH","Németh T. Enikő"]
[null,null,null,"RK2S-MAG-KOT05","A nyelvészet külső kapcsolatai és alkalmazásai szeminárium (pszicholingvisztika, anyanyelv-elsajátítás, számítógépes nyszet, lexikográfia stb.)                                                 ","szeminárium","gyakorlati jegy","kötelező",2,9,null,3,2,3,"EMQWVX","Németh Miklós"]
[null,null,null,"RK2S-MAG-KOT06","Nyelvtörténet (legfontosabb nyelvemlékeink komplex elemzése, a szó-, a névkincs és a frazeológia története stb.) szeminárium                                                                             ","szeminárium","gyakorlati jegy","kötelező",2,9,null,3,2,3,"OUAWUI","Forgács Tamás"]
[null,null,null,"RK2S-MAG-KOT07","Nyelv és társadalom előadás","előadás","kollokvium","kötelező",2,9,null,3,2,3,"EMQWVX","Németh Miklós"]
["Irodalomtudományi ismeretek (24 kredit)",null,null,"RK2S-MAG-KOT08","Műfaj- és eszmetörténet a régi magyar irodalomban","előadás","kollokvium","kötelező",2,9,3,null,1,3,"TW358K","Molnár Dávid"]
[null,null,null,"RK2S-MAG-KOT09","Műfaj- és eszmetörténet a klasszikus magyar irodalomban ","előadás","kollokvium","kötelező",2,9,3,null,1,3,"GPZTBK","Gere Zsolt"]
[null,null,null,"RK2S-MAG-KOT10","Műfaj- és eszmetörténet a modern magyar és a határon túli irodalomban ","előadás","kollokvium","kötelező",2,9,null,3,2,3,"FODBN0","Virág Zoltán"]
[null,null,null,"RK2S-MAG-KOT11","Világirodalom és komparatisztika ","előadás","kollokvium","kötelező",2,9,3,null,1,3,"BGWKTE","Kelemen Zoltán"]
[null,null,null,"RK2S-MAG-KOT12","Az irodalom társadalomtörténete (intézménytörténet, kapcsolattörténet, társművészetek)","előadás","kollokvium","kötelező",2,9,null,3,2,3,"OAONGX","Szabó Gábor"]
[null,null,null,"RK2S-MAG-KOT13","A műelemzés módszertana ","szeminárium","gyakorlati jegy","kötelező",2,9,3,null,1,3,"GPZTBK","Gere Zsolt"]
[null,null,null,"RK2S-MAG-KOT14","Műelemzési gyakorlatok ","szeminárium","gyakorlati jegy","kötelező",2,9,null,3,2,3,"GPZTBK","Gere Zsolt"]
[null,null,null,"RK2S-MAG-KOT15","Szakszövegolvasás","szeminárium","gyakorlati jegy","kötelezően választható",2,9,3,null,1,3,"TW358K","Molnár Dávid"]
[null,null,null,"RK2S-MAG-KOT16","Műértelmezés","szeminárium","gyakorlati jegy","kötelezően választható",2,9,3,null,1,3,"TW358K","Molnár Dávid"]
["Középiskolai és felnőttkori tantárgy-pedagógiához, illetve az emelt szintű érettségihez kapcsolódó ismeretek és kompetenciák, minimum 10 kredit.","MK-SZM",null,null,"Szakmódszertan","nincs megadva","nincs megadva","kötelező",{"$nulls":5},8]
[null,null,null,"RK2S-MAG-SZM1","Az irodalomtanítás elméleti alapjai a középiskolában","szeminárium","gyakorlati jegy","kötelező",2,9,2,null,1,2,"WR1BAF","Zsigriné dr. Sejtes Györgyi"]
[null,null,null,"RK2S-MAG-SZM2","Az anyanyelvtanítás elméleti alapjai a középiskolában","szeminárium","gyakorlati jegy","kötelező",2,9,2,null,1,2,"WR1BAF","Zsigriné dr. Sejtes Györgyi"]
[null,null,null,"RK2S-MAG-SZM3","Az irodalomtanítás gyakorlata a középiskolában","szeminárium","gyakorlati jegy","kötelező",2,9,null,2,2,2,"WR1BAF","Zsigriné dr. Sejtes Györgyi"]
[null,null,null,"RK2S-MAG-SZM4","Az anyanyelvtanítás gyakorlata a középiskolában","szeminárium","gyakorlati jegy","kötelező",2,9,null,2,2,2,"WR1BAF","Zsigriné dr. Sejtes Györgyi"]
["Középiskolai és felnőttkori tantárgy-pedagógiához, illetve az emelt szintű érettségihez kapcsolódó ismeretek és kompetenciák, minimum 10 kredit.","MK-E",null,null,"Emelt szintű érettségi követelményeinek ismerete","nincs megadva","nincs megadva","kötelező",{"$nulls":5},4]
[null,null,null,"RK2S-MAG-E1","Emelt szintű érettségi követelményeinek ismerete 1.","szeminárium","gyakorlati jegy","kötelező",2,9,null,2,2,2]
[null,null,null,"RK2S-MAG-E2","Emelt szintű érettségi követelményeinek ismerete 2.","szeminárium","gyakorlati jegy","kötelező",2,9,null,2,2,2]
[null,"MK-SZV",null,null,"Szabadon választható tárgyak*","nincs megadva","nincs megadva","kötelező",{"$nulls":5},3]
[null,null,null,"RK2S-MAG-SZV01","Kulturális nyelvészet","szeminárium","gyakorlati jegy","szabadon választható",2,9,3,null,1,3,"PMYQE3","Sipőcz Katalin"]
[null,null,null,"RK2S-MAG-SZV02","Diskurzuselemzés","előadás","kollokvium","szabadon választható",2,9,3,null,1,3,"BQEUFH","Németh T. Enikő"]
[null,null,null,"RK2S-MAG-SZV03","Műfajok a magyar irodalomban","szeminárium","gyakorlati jegy","szabadon választható",2,9,3,null,1,3,"TW358K","Molnár Dávid"]
[]
[{"$nulls":9},"Előírt kredit:",30,30,null,60]
[{"$nulls":9},"Számolt kredit:",{"$f":"SUM(K9:K38)","v":40},{"$f":"SUM(L9:L38)","v":29}]

{"sheet":"3T","index":3,"n_rows":101,"n_cols":19,"rows_kept":101,"cut":false,"hidden":false,"merged":[[3,17,4,17],[3,18,4,18],[50,0,50,3],[3,7,3,8],[3,12,4,12],[3,13,4,13],[3,14,4,14],[3,15,4,15],[3,0,4,0],[3,1,4,1],[3,2,4,2],[3,3,4,3],[3,4,4,4],[3,5,4,5],[3,6,4,6],[53,4,54,4],[53,5,54,5],[53,6,54,6],[3,16,4,16],[53,16,54,16],[53,17,54,17],[53,18,54,18],[100,0,100,3],[2,2,2,8],[52,2,52,8],[3,9,3,11],[53,9,53,11],[53,7,53,8],[53,12,54,12],[53,13,54,13],[53,14,54,14],[53,15,54,15],[53,0,54,0],[53,1,54,1],[53,2,54,2],[53,3,54,3]]}
["Tanári szakképzettség birtokában újabb (más szakos) tanári oklevelet adó tanárképzés (90 kredit)",{"$nulls":14},"3T"]
[]
["KÉPZÉS kódja, neve:","MTKBMAG_3T_N_2024",{"$f":"VLOOKUP($B$3,Segédlap!A:B,2,0)","v":"magyar nyelv és irodalom szakos tanár (más tanári)"}]
["MÉRFÖLDKŐ (önálló csoportosító sor) KÓDJA","TÁRGYCSOPORT KÓDJA","TÁRGYKÓD","MK/TCS/tárgy NEVE/CÍME","TÁRGY TÍPUSA","TÁRGY-KÖVETELMÉNY","FELVÉTEL TÍPUSA","ÓRASZÁM",null,"FÉLÉV ÉS KREDIT",null,null,"KREDIT-SZÁM","Ajánlott félév","TÁRGY(CSOPORT)-FELELŐS Neptun kódja","TÁRGY(CSOPORT)-FELELŐS neve","VÉGLEGES IDŐSZAK (TELJESÍTÉS)","VÉGLEGES IDŐSZAK (FELVÉTEL)","ELŐZETES VIZSGAFELTÉTEL"]
[{"$nulls":7},"heti","féléves","1.","2.","3."]
["MK-KOT",null,null,"Kötelező szakmai tárgyak","Nincs megadva","Nincs megadva","Kötelező",{"$nulls":5},76]
[null,"TCS-RK3TN-MAG-KOT",null,null,"Nincs megadva","Nincs megadva","Kötelező"]
["Nyelvtudományi alapozó tárgyak ",null,"RK3TN-MAG-KOT1"," Bevezetés a nyelvtudományba","Előadás","Kollokvium","Kötelező",2,null,3,null,null,3,1,"BQEUFH","Németh T. Enikő"]
[null,null,"RK3TN-MAG-KOT2","Nyelvtudományi proszeminárium","Szeminárium","Gyakorlati jegy","Kötelező",2,null,2,null,null,2,1,"WR1BAF","Sinkovics Balázs"]
["Nyelvtudományi ismeretek",null,"RK3TN-MAG-KOT3","Leíró magyar hangtan szeminárium","Szeminárium","Gyakorlati jegy","Kötelező",2,null,2,null,null,2,1,"WR1BAF","Sinkovics Balázs"]
[null,null,"RK3TN-MAG-KOT4","Szófajtan és alaktan előadás                                                                                     ","Előadás","Kollokvium","Kötelező",2,null,null,2,null,2,2,"FZ2JFS","Berente Anikó"]
[null,null,"RK3TN-MAG-KOT5","Szófajtan és alaktan szeminárium                                                                          ","Szeminárium","Gyakorlati jegy","Kötelező",2,null,null,2,null,2,2,"FZ2JFS","Berente Anikó"]
[null,null,"RK3TN-MAG-KOT6","Mondattan előadás                                                      ","Előadás","Kollokvium","Kötelező",2,null,2,null,null,2,1,"FZ2JFS","Berente Anikó"]
[null,null,"RK3TN-MAG-KOT7","Mondattan szeminárium                                                                             ","Szeminárium","Gyakorlati jegy","Kötelező",2,null,3,null,null,3,1,"FZ2JFS","Berente Anikó"]
[null,null,"RK3TN-MAG-KOT8","Stílus és jelentés","Előadás","Kollokvium","Kötelező",2,null,null,2,null,2,2,"GHO3PX","Schirm Anita"]
[null,null,"RK3TN-MAG-KOT9","Szövegtani ismeretek                                                                                                ","Előadás","Kollokvium","Kötelező",2,null,null,2,null,2,2,"WR1BAF","Zsigriné dr. Sejtes Györgyi"]
[null,null,"RK3TN-MAG-KOT10","Kommunikáció szóban és írásban  ","Szeminárium","Gyakorlati jegy","Kötelező",2,null,null,2,null,2,2,"WR1BAF","Sinkovics Balázs"]
[null,null,"RK3TN-MAG-KOT11","Nyelv és társadalom                           ","Előadás","Kollokvium","Kötelező",2,null,null,3,null,3,2,"EMQWVX","Németh Miklós"]
[null,null,"RK3TN-MAG-KOT12","Nyelvtörténet előadás                                    ","Előadás","Kollokvium","Kötelező",2,null,null,null,3,3,3,"OUAWUI","Forgács Tamás"]
[null,null,"RK3TN-MAG-KOT13","A magyar nyelv történeti változásai az egyes szinteken ","Szeminárium","Gyakorlati jegy","Kötelező",2,null,null,null,3,3,3,"OUAWUI","Forgács Tamás"]
[null,null,"RK3TN-MAG-KOT14","A nyelvleírás fontosabb irányzatai az oktatás gyakorlatában ","Szeminárium","Gyakorlati jegy","Kötelező",2,null,null,null,2,2,3,"GHO3PX","Schirm Anita"]
[null,null,"RK3TN-MAG-KOT15","Lexikológia, lexikográfia és frazeológia","Szeminárium","Gyakorlati jegy","Kötelező",2,null,null,null,2,2,3,"OUAWUI","Forgács Tamás"]
["Irodalomtudományi alapozó ismeretek ",null,"RK3TN-MAG-KOT16","Az irodalomtudomány alapjai ","Előadás","Kollokvium","Kötelező",2,null,3,null,null,3,1,"KFAICJ","Hansági Ágnes"]
[null,null,"RK3TN-MAG-KOT17","Az irodalomtudományi ismeretszerzés alapjai (proszeminárium)","Szeminárium","Gyakorlati jegy","Kötelező",2,null,2,null,null,2,1,"SEQOIT","Latzkovits Miklós"]
["Irodalomtudományi ismeretek ",null,"RK3TN-MAG-KOT18","Bevezetés a műelemzésbe","Szeminárium","Gyakorlati jegy","Kötelező",2,null,null,2,null,2,2,"KFAICJ","Hansági Ágnes"]
[null,null,"RK3TN-MAG-KOT19","Világirodalom előadás 1. ","Előadás","Kollokvium","Kötelező",2,null,3,null,null,3,1,"BGWKTE","Kelemen Zoltán"]
[null,null,"RK3TN-MAG-KOT20","Világirodalom előadás 2. ","Előadás","Kollokvium","Kötelező",2,null,null,3,null,3,2,"BGWKTE","Kelemen Zoltán "]
[null,null,"RK3TN-MAG-KOT21","Világirodalom szeminárium 1. ","Szeminárium","Gyakorlati jegy","Kötelező",2,null,2,null,null,2,1,"BGWKTE","Kelemen Zoltán "]
[null,null,"RK3TN-MAG-KOT22","Világirodalom szeminárium 2.","Szeminárium","Gyakorlati jegy","Kötelező",2,null,null,null,2,2,3,"BGWKTE","Kelemen Zoltán "]
[null,null,"RK3TN-MAG-KOT23","Régi magyar irodalom előadás ","Előadás","Kollokvium","Kötelező",2,null,3,null,null,3,1,"SEQOIT","Latzkovits Miklós"]
[null,null,"RK3TN-MAG-KOT24","Régi magyar irodalom szeminárium","Szeminárium","Gyakorlati jegy","Kötelező",2,null,null,2,null,2,2,"SEQOIT","Latzkovits Miklós"]
[null,null,"RK3TN-MAG-KOT25","Klasszikus magyar irodalom előadás ","Előadás","Kollokvium","Kötelező",2,null,3,null,null,3,1,"J4XSEZ","Hász-Fehér Katalin "]
[null,null,"RK3TN-MAG-KOT26","Klasszikus magyar irodalom szeminárium ","Szeminárium","Gyakorlati jegy","Kötelező",2,null,null,2,null,2,2,"KFAICJ","Hansági Ágnes"]
[null,null,"RK3TN-MAG-KOT27","Modern magyar irodalom előadás","Előadás","Kollokvium","Kötelező",2,null,null,null,3,3,3,"SPNCNW","Szilágyi Zsófia"]
[null,null,"RK3TN-MAG-KOT28","Modern magyar irodalom szeminárium ","Szeminárium","Gyakorlati jegy","Kötelező",2,null,null,null,2,2,3,"SPNCNW","Szilágyi Zsófia"]
[null,null,"RK3TN-MAG-KOT29","Kortárs magyar irodalom szeminárium","Szeminárium","Gyakorlati jegy","Kötelező",2,null,null,null,3,3,3,"FODBN0","Virág Zoltán "]
[null,null,"RK3TN-MAG-KOT30","Műelemzések szeminárium 1. ","Szeminárium","Gyakorlati jegy","Kötelező",2,null,null,2,null,2,2,"RVJ3CT","Tóth Ákos"]
[null,null,"RK3TN-MAG-KOT31","Műelemzések szeminárium 2.","Szeminárium","Gyakorlati jegy","Kötelező",2,null,null,null,2,2,3,"OAONGX","Szabó Gábor"]
[null,null,"RK3TN-MAG-KOT32","Gyermek és ifjúsági irodalom szeminárium","Szeminárium","Gyakorlati jegy","Kötelező",2,null,null,null,2,2,3,"KFAICJ","Hansági Ágnes"]
["MK-SZM",null,null,"Szakmódszertan","Nincs megadva","Nincs megadva","Kötelező",{"$nulls":5},6]
[null,null,"RK3TN-MAG-SZM1","A magyar nyelv és irodalom oktatásának elméleti alapjai","Előadás","Kollokvium","Kötelező",2,null,2,null,null,2,1,"WR1BAF","Zsigriné dr. Sejtes Györgyi"]
[null,null,"RK3TN-MAG-SZM2","Az anyanyelvtanítás gyakorlata","Szeminárium","Gyakorlati jegy","Kötelező",2,null,null,2,null,2,2,"WR1BAF","Zsigriné dr. Sejtes Györgyi"]
[null,null,"RK3TN-MAG-SZM3","Az irodalomtanítás gyakorlata ","Szeminárium","Gyakorlati jegy","Kötelező",2,null,null,2,null,2,2,"WR1BAF","Zsigriné dr. Sejtes Györgyi"]
["MK-SZV",null,null,"Szabadon választható tárgyak","Nincs megadva","Nincs megadva","Kötelező",null,null,null,2,2,4]
[null,null,"RK3TN-MAG-SZV1","Statisztikai módszerek a nyelvtudományban","Előadás","Kollokvium","Kötelezően választható",2,null,null,2,null,2,2,"M9QMTA","Németh Zsuzsanna"]
[null,null,"RK3TN-MAG-SZV2","Mesterséges intelligencia","Szeminárium","Gyakorlati jegy","Kötelezően választható",2,null,null,2,null,2,2,"F7VBEE","Szécsényi Tibor"]
[null,null,"RK3TN-MAG-SZV3","Finn nyelv","Szeminárium","Gyakorlati jegy","Kötelezően választható",2,null,null,null,2,2,3,"PMYQE3","Sipőcz Katalin"]
[null,null,"RK3TN-MAG-SZV4","Társalgáselemzés","Szeminárium","Gyakorlati jegy","Kötelezően választható",2,null,null,null,2,2,3,"M9QMTA","Németh Zsuzsanna"]
[]
[{"$nulls":8},"Előírt kredit:",30,30,26,86]
[{"$nulls":8},"Számolt kredit:",{"$f":"SUM(J6:J49)","v":30},{"$f":"SUM(K6:K44)","v":30},{"$f":"SUM(L6:L44)","v":26}]
[]
["KÉPZÉS kódja, neve:","MTKBMAG_3T_L_2024",{"$f":"VLOOKUP($B$53,Segédlap!A:B,2,0)","v":"magyar nyelv és irodalom szakos tanár (más tanári)"}]
["MÉRFÖLDKŐ (önálló csoportosító sor) KÓDJA","TÁRGYCSOPORT KÓDJA","TÁRGYKÓD","MK/TCS/tárgy NEVE/CÍME","TÁRGY TÍPUSA","TÁRGY-KÖVETELMÉNY","FELVÉTEL TÍPUSA","ÓRASZÁM",null,"FÉLÉV ÉS KREDIT",null,null,"KREDIT-SZÁM","Ajánlott félév","TÁRGY(CSOPORT)-FELELŐS Neptun kódja","TÁRGY(CSOPORT)-FELELŐS neve","VÉGLEGES IDŐSZAK (TELJESÍTÉS)","VÉGLEGES IDŐSZAK (FELVÉTEL)","ELŐZETES VIZSGAFELTÉTEL"]
[{"$nulls":7},"heti","féléves","1.","2.","3."]
["MK-KOT",null,null,"Kötelező szakmai tárgyak","Nincs megadva","Nincs megadva","Kötelező",{"$nulls":5},76]
[null,"TCS-RK3TL-MAG-KOT",null,null,"Nincs megadva","Nincs megadva","Kötelező"]
["Nyelvtudományi alapozó tárgyak ",null,"RK3TL-MAG-KOT1"," Bevezetés a nyelvtudományba","Előadás","Kollokvium","Kötelező",null,9,3,null,null,3,1,"BQEUFH","Németh T. Enikő"]
[null,null,"RK3TL-MAG-KOT2","Nyelvtudományi proszeminárium","Szeminárium","Gyakorlati jegy","Kötelező",null,9,2,null,null,2,1,"WR1BAF","Sinkovics Balázs"]
["Nyelvtudományi ismeretek",null,"RK3TL-MAG-KOT3","Leíró magyar hangtan szeminárium","Szeminárium","Gyakorlati jegy","Kötelező",null,9,2,null,null,2,1,"WR1BAF","Sinkovics Balázs"]
[null,null,"RK3TL-MAG-KOT4","Szófajtan és alaktan előadás                                                                                     ","Előadás","Kollokvium","Kötelező",null,9,null,2,null,2,2,"FZ2JFS","Berente Anikó"]
[null,null,"RK3TL-MAG-KOT5","Szófajtan és alaktan szeminárium                                                                          ","Szeminárium","Gyakorlati jegy","Kötelező",null,9,null,2,null,2,2,"FZ2JFS","Berente Anikó"]
[null,null,"RK3TL-MAG-KOT6","Mondattan előadás                                                      ","Előadás","Kollokvium","Kötelező",null,9,2,null,null,2,1,"FZ2JFS","Berente Anikó"]
[null,null,"RK3TL-MAG-KOT7","Mondattan szeminárium                                                                             ","Szeminárium","Gyakorlati jegy","Kötelező",null,9,3,null,null,3,1,"FZ2JFS","Berente Anikó"]
[null,null,"RK3TL-MAG-KOT8","Stílus és jelentés","Előadás","Kollokvium","Kötelező",null,9,null,2,null,2,2,"GHO3PX","Schirm Anita"]
[null,null,"RK3TL-MAG-KOT9","Szövegtani ismeretek                                                                                                ","Előadás","Kollokvium","Kötelező",null,9,null,2,null,2,2,"WR1BAF","Zsigriné dr. Sejtes Györgyi"]
[null,null,"RK3TL-MAG-KOT10","Kommunikáció szóban és írásban  ","Szeminárium","Gyakorlati jegy","Kötelező",null,9,null,2,null,2,2,"WR1BAF","Sinkovics Balázs"]
[null,null,"RK3TL-MAG-KOT11","Nyelv és társadalom                           ","Előadás","Kollokvium","Kötelező",null,9,null,3,null,3,2,"EMQWVX","Németh Miklós"]
[null,null,"RK3TL-MAG-KOT12","Nyelvtörténet előadás                                    ","Előadás","Kollokvium","Kötelező",null,9,null,null,3,3,3,"OUAWUI","Forgács Tamás"]
[null,null,"RK3TL-MAG-KOT13","A magyar nyelv történeti változásai az egyes szinteken ","Szeminárium","Gyakorlati jegy","Kötelező",null,9,null,null,3,3,3,"OUAWUI","Forgács Tamás"]
[null,null,"RK3TL-MAG-KOT14","A nyelvleírás fontosabb irányzatai az oktatás gyakorlatában ","Szeminárium","Gyakorlati jegy","Kötelező",null,9,null,null,2,2,3,"GHO3PX","Schirm Anita"]
[null,null,"RK3TL-MAG-KOT15","Lexikológia, lexikográfia és frazeológia","Szeminárium","Gyakorlati jegy","Kötelező",null,9,null,null,2,2,3,"OUAWUI","Forgács Tamás"]
["Irodalomtudományi alapozó ismeretek ",null,"RK3TL-MAG-KOT16","Az irodalomtudomány alapjai ","Előadás","Kollokvium","Kötelező",null,9,3,null,null,3,1,"KFAICJ","Hansági Ágnes"]
[null,null,"RK3TL-MAG-KOT17","Az irodalomtudományi ismeretszerzés alapjai (proszeminárium)","Szeminárium","Gyakorlati jegy","Kötelező",null,9,2,null,null,2,1,"SEQOIT","Latzkovits Miklós"]
["Irodalomtudományi ismeretek ",null,"RK3TL-MAG-KOT18","Bevezetés a műelemzésbe","Szeminárium","Gyakorlati jegy","Kötelező",null,9,null,2,null,2,2,"KFAICJ","Hansági Ágnes"]
[null,null,"RK3TL-MAG-KOT19","Világirodalom előadás 1. ","Előadás","Kollokvium","Kötelező",null,9,3,null,null,3,1,"BGWKTE","Kelemen Zoltán"]
[null,null,"RK3TL-MAG-KOT20","Világirodalom előadás 2. ","Előadás","Kollokvium","Kötelező",null,9,null,3,null,3,2,"BGWKTE","Kelemen Zoltán "]
[null,null,"RK3TL-MAG-KOT21","Világirodalom szeminárium 1. ","Szeminárium","Gyakorlati jegy","Kötelező",null,9,2,null,null,2,1,"BGWKTE","Kelemen Zoltán "]
[null,null,"RK3TL-MAG-KOT22","Világirodalom szeminárium 2.","Szeminárium","Gyakorlati jegy","Kötelező",null,9,null,null,2,2,3,"BGWKTE","Kelemen Zoltán "]
[null,null,"RK3TL-MAG-KOT23","Régi magyar irodalom előadás ","Előadás","Kollokvium","Kötelező",null,9,3,null,null,3,1,"SEQOIT","Latzkovits Miklós"]
[null,null,"RK3TL-MAG-KOT24","Régi magyar irodalom szeminárium","Szeminárium","Gyakorlati jegy","Kötelező",null,9,null,2,null,2,2,"SEQOIT","Latzkovits Miklós"]
[null,null,"RK3TL-MAG-KOT25","Klasszikus magyar irodalom előadás ","Előadás","Kollokvium","Kötelező",null,9,3,null,null,3,1,"J4XSEZ","Hász-Fehér Katalin "]
[null,null,"RK3TL-MAG-KOT26","Klasszikus magyar irodalom szeminárium ","Szeminárium","Gyakorlati jegy","Kötelező",null,9,null,2,null,2,2,"KFAICJ","Hansági Ágnes"]
[null,null,"RK3TL-MAG-KOT27","Modern magyar irodalom előadás","Előadás","Kollokvium","Kötelező",null,9,null,null,3,3,3,"SPNCNW","Szilágyi Zsófia"]
[null,null,"RK3TL-MAG-KOT28","Modern magyar irodalom szeminárium ","Szeminárium","Gyakorlati jegy","Kötelező",null,9,null,null,2,2,3,"SPNCNW","Szilágyi Zsófia"]
[null,null,"RK3TL-MAG-KOT29","Kortárs magyar irodalom szeminárium","Szeminárium","Gyakorlati jegy","Kötelező",null,9,null,null,3,3,3,"FODBN0","Virág Zoltán "]
[null,null,"RK3TL-MAG-KOT30","Műelemzések szeminárium 1. ","Szeminárium","Gyakorlati jegy","Kötelező",null,9,null,2,null,2,2,"RVJ3CT","Tóth Ákos"]
[null,null,"RK3TL-MAG-KOT31","Műelemzések szeminárium 2.","Szeminárium","Gyakorlati jegy","Kötelező",null,9,null,null,2,2,3,"OAONGX","Szabó Gábor"]
[null,null,"RK3TL-MAG-KOT32","Gyermek és ifjúsági irodalom szeminárium","Szeminárium","Gyakorlati jegy","Kötelező",null,9,null,null,2,2,3,"KFAICJ","Hansági Ágnes"]
["MK-SZM",null,null,"Szakmódszertan","Nincs megadva","Nincs megadva","Kötelező",{"$nulls":5},6]
[null,null,"RK3TL-MAG-SZM1","A magyar nyelv és irodalom oktatásának elméleti alapjai","Előadás","Kollokvium","Kötelező",null,9,2,null,null,2,1,"WR1BAF","Zsigriné dr. Sejtes Györgyi"]
[null,null,"RK3TL-MAG-SZM2","Az anyanyelvtanítás gyakorlata","Szeminárium","Gyakorlati jegy","Kötelező",null,9,null,2,null,2,2,"WR1BAF","Zsigriné dr. Sejtes Györgyi"]
[null,null,"RK3TL-MAG-SZM3","Az irodalomtanítás gyakorlata ","Szeminárium","Gyakorlati jegy","Kötelező",null,9,null,2,null,2,2,"WR1BAF","Zsigriné dr. Sejtes Györgyi"]
["MK-SZV",null,null,"Szabadon választható tárgyak","Nincs megadva","Nincs megadva","Kötelező",null,null,null,2,2,4]
[null,null,"RK3TL-MAG-SZV1","Statisztikai módszerek a nyelvtudományban","Előadás","Kollokvium","Kötelezően választható",2,null,null,2,null,2,2,"M9QMTA","Németh Zsuzsanna"]
[null,null,"RK3TL-MAG-SZV2","Mesterséges intelligencia","Szeminárium","Gyakorlati jegy","Kötelezően választható",2,null,null,2,null,2,2,"F7VBEE","Szécsényi Tibor"]
[null,null,"RK3TL-MAG-SZV3","Finn nyelv","Szeminárium","Gyakorlati jegy","Kötelezően választható",2,null,null,null,2,2,3,"PMYQE3","Sipőcz Katalin"]
[null,null,"RK3TL-MAG-SZV4","Társalgáselemzés","Szeminárium","Gyakorlati jegy","Kötelezően választható",2,null,null,null,2,2,3,"M9QMTA","Németh Zsuzsanna"]
[]
[{"$nulls":8},"Előírt kredit:",30,30,26,86]
[{"$nulls":8},"Számolt kredit:",{"$f":"SUM(J56:J99)","v":30},{"$f":"SUM(K56:K94)","v":30},{"$f":"SUM(L56:L94)","v":26}]

{"sheet":"3P","index":4,"n_rows":102,"n_cols":19,"rows_kept":102,"cut":false,"hidden":false,"merged":[[3,15,4,15],[3,16,4,16],[3,17,4,17],[3,18,4,18],[50,0,50,3],[3,5,4,5],[3,6,4,6],[3,7,3,8],[3,12,4,12],[3,13,4,13],[3,0,4,0],[3,1,4,1],[3,2,4,2],[3,3,4,3],[3,4,4,4],[54,3,55,3],[54,4,55,4],[54,5,55,5],[54,6,55,6],[3,14,4,14],[54,16,55,16],[54,17,55,17],[54,18,55,18],[101,0,101,3],[2,2,2,8],[52,2,52,8],[3,9,3,11],[54,9,54,11],[54,7,54,8],[54,12,55,12],[54,13,55,13],[54,14,55,14],[54,15,55,15],[54,0,55,0],[54,1,55,1],[54,2,55,2]]}
["Pedagógus szakképzettség birtokában újabb (más szakos) tanári oklevelet adó tanárképzés (90 kredit)",{"$nulls":14},"3P"]
[]
["KÉPZÉS kódja, neve:","MTKBMAG_3P_N_2024",{"$f":"VLOOKUP($B$3,Segédlap!A:B,2,0)","v":"magyar nyelv és irodalom szakos tanár (tanítóknak)"}]
["MÉRFÖLDKŐ (önálló csoportosító sor) KÓDJA","TÁRGYCSOPORT KÓDJA","TÁRGYKÓD","MK/TCS/tárgy NEVE/CÍME","TÁRGY TÍPUSA","TÁRGY-KÖVETELMÉNY","FELVÉTEL TÍPUSA","ÓRASZÁM",null,"FÉLÉV ÉS KREDIT",null,null,"KREDIT-SZÁM","Ajánlott félév","TÁRGY(CSOPORT)-FELELŐS Neptun kódja","TÁRGY(CSOPORT)-FELELŐS neve","VÉGLEGES IDŐSZAK (TELJESÍTÉS)","VÉGLEGES IDŐSZAK (FELVÉTEL)","ELŐZETES VIZSGAFELTÉTEL"]
[{"$nulls":7},"heti","féléves","1.","2.","3."]
["MK-KOT",null,null,"Kötelező szakmai tárgyak","Nincs megadva","Nincs megadva","Kötelező",{"$nulls":5},76]
[null,"TCS-RK3PN-MAG-KOT"]
["Nyelvtudományi alapozó tárgyak ",null,"RK3PN-MAG-KOT1"," Bevezetés a nyelvtudományba","Előadás","Kollokvium","Kötelező",2,null,3,null,null,3,1,"BQEUFH","Németh T. Enikő"]
[null,null,"RK3PN-MAG-KOT2","Nyelvtudományi proszeminárium","Szeminárium","Gyakorlati jegy","Kötelező",2,null,2,null,null,2,1,"WR1BAF","Sinkovics Balázs"]
["Nyelvtudományi ismeretek",null,"RK3PN-MAG-KOT3","Leíró magyar hangtan szeminárium","Szeminárium","Gyakorlati jegy","Kötelező",2,null,2,null,null,2,1,"WR1BAF","Sinkovics Balázs"]
[null,null,"RK3PN-MAG-KOT4","Szófajtan és alaktan előadás                                                                                     ","Előadás","Kollokvium","Kötelező",2,null,null,2,null,2,2,"FZ2JFS","Berente Anikó"]
[null,null,"RK3PN-MAG-KOT5","Szófajtan és alaktan szeminárium                                                                          ","Szeminárium","Gyakorlati jegy","Kötelező",2,null,null,2,null,2,2,"FZ2JFS","Berente Anikó"]
[null,null,"RK3PN-MAG-KOT6","Mondattan előadás                                                      ","Előadás","Kollokvium","Kötelező",2,null,2,null,null,2,1,"FZ2JFS","Berente Anikó"]
[null,null,"RK3PN-MAG-KOT7","Mondattan szeminárium                                                                             ","Szeminárium","Gyakorlati jegy","Kötelező",2,null,3,null,null,3,1,"FZ2JFS","Berente Anikó"]
[null,null,"RK3PN-MAG-KOT8","Stílus és jelentés","Előadás","Kollokvium","Kötelező",2,null,null,2,null,2,2,"GHO3PX","Schirm Anita"]
[null,null,"RK3PN-MAG-KOT9","Szövegtani ismeretek                                                                                                ","Előadás","Kollokvium","Kötelező",2,null,null,2,null,2,2,"WR1BAF","Zsigriné dr. Sejtes Györgyi"]
[null,null,"RK3PN-MAG-KOT10","Kommunikáció szóban és írásban  ","Szeminárium","Gyakorlati jegy","Kötelező",2,null,null,2,null,2,2,"WR1BAF","Sinkovics Balázs"]
[null,null,"RK3PN-MAG-KOT11","Nyelv és társadalom                           ","Előadás","Kollokvium","Kötelező",2,null,null,3,null,3,2,"EMQWVX","Németh Miklós"]
[null,null,"RK3PN-MAG-KOT12","Nyelvtörténet előadás                                    ","Előadás","Kollokvium","Kötelező",2,null,null,null,3,3,3,"OUAWUI","Forgács Tamás"]
[null,null,"RK3PN-MAG-KOT13","A magyar nyelv történeti változásai az egyes szinteken ","Szeminárium","Gyakorlati jegy","Kötelező",2,null,null,null,3,3,3,"OUAWUI","Forgács Tamás"]
[null,null,"RK3PN-MAG-KOT14","A nyelvleírás fontosabb irányzatai az oktatás gyakorlatában ","Szeminárium","Gyakorlati jegy","Kötelező",2,null,null,null,2,2,3,"GHO3PX","Schirm Anita"]
[null,null,"RK3PN-MAG-KOT15","Lexikológia, lexikográfia és frazeológia","Szeminárium","Gyakorlati jegy","Kötelező",2,null,null,null,2,2,3,"OUAWUI","Forgács Tamás"]
["Irodalomtudományi alapozó ismeretek ",null,"RK3PN-MAG-KOT16","Az irodalomtudomány alapjai ","Előadás","Kollokvium","Kötelező",2,null,3,null,null,3,1,"KFAICJ","Hansági Ágnes"]
[null,null,"RK3PN-MAG-KOT17","Az irodalomtudományi ismeretszerzés alapjai (proszeminárium)","Szeminárium","Gyakorlati jegy","Kötelező",2,null,2,null,null,2,1,"SEQOIT","Latzkovits Miklós"]
["Irodalomtudományi ismeretek ",null,"RK3PN-MAG-KOT18","Bevezetés a műelemzésbe","Szeminárium","Gyakorlati jegy","Kötelező",2,null,null,2,null,2,2,"KFAICJ","Hansági Ágnes"]
[null,null,"RK3PN-MAG-KOT19","Világirodalom előadás 1. ","Előadás","Kollokvium","Kötelező",2,null,3,null,null,3,1,"BGWKTE","Kelemen Zoltán"]
[null,null,"RK3PN-MAG-KOT20","Világirodalom előadás 2. ","Előadás","Kollokvium","Kötelező",2,null,null,3,null,3,2,"BGWKTE","Kelemen Zoltán "]
[null,null,"RK3PN-MAG-KOT21","Világirodalom szeminárium 1. ","Szeminárium","Gyakorlati jegy","Kötelező",2,null,2,null,null,2,1,"BGWKTE","Kelemen Zoltán "]
[null,null,"RK3PN-MAG-KOT22","Világirodalom szeminárium 2.","Szeminárium","Gyakorlati jegy","Kötelező",2,null,null,null,2,2,3,"BGWKTE","Kelemen Zoltán "]
[null,null,"RK3PN-MAG-KOT23","Régi magyar irodalom előadás ","Előadás","Kollokvium","Kötelező",2,null,3,null,null,3,1,"SEQOIT","Latzkovits Miklós"]
[null,null,"RK3PN-MAG-KOT24","Régi magyar irodalom szeminárium","Szeminárium","Gyakorlati jegy","Kötelező",2,null,null,2,null,2,2,"SEQOIT","Latzkovits Miklós"]
[null,null,"RK3PN-MAG-KOT25","Klasszikus magyar irodalom előadás ","Előadás","Kollokvium","Kötelező",2,null,3,null,null,3,1,"J4XSEZ","Hász-Fehér Katalin "]
[null,null,"RK3PN-MAG-KOT26","Klasszikus magyar irodalom szeminárium ","Szeminárium","Gyakorlati jegy","Kötelező",2,null,null,2,null,2,2,"KFAICJ","Hansági Ágnes"]
[null,null,"RK3PN-MAG-KOT27","Modern magyar irodalom előadás","Előadás","Kollokvium","Kötelező",2,null,null,null,3,3,3,"SPNCNW","Szilágyi Zsófia"]
[null,null,"RK3PN-MAG-KOT28","Modern magyar irodalom szeminárium ","Szeminárium","Gyakorlati jegy","Kötelező",2,null,null,null,2,2,3,"SPNCNW","Szilágyi Zsófia"]
[null,null,"RK3PN-MAG-KOT29","Kortárs magyar irodalom szeminárium","Szeminárium","Gyakorlati jegy","Kötelező",2,null,null,null,3,3,3,"FODBN0","Virág Zoltán "]
[null,null,"RK3PN-MAG-KOT30","Műelemzések szeminárium 1. ","Szeminárium","Gyakorlati jegy","Kötelező",2,null,null,2,null,2,2,"RVJ3CT","Tóth Ákos"]
[null,null,"RK3PN-MAG-KOT31","Műelemzések szeminárium 2.","Szeminárium","Gyakorlati jegy","Kötelező",2,null,null,null,2,2,3,"OAONGX","Szabó Gábor"]
[null,null,"RK3PN-MAG-KOT32","Gyermek és ifjúsági irodalom szeminárium","Szeminárium","Gyakorlati jegy","Kötelező",2,null,null,null,2,2,3,"KFAICJ","Hansági Ágnes"]
["MK-SZM",null,null,"Szakmódszertan","Nincs megadva","Nincs megadva","Kötelező",{"$nulls":5},6]
[null,null,"RK3PN-MAG-SZM1","A magyar nyelv és irodalom oktatásának elméleti alapjai","Előadás","Kollokvium","Kötelező",2,null,2,null,null,2,1,"WR1BAF","Zsigriné dr. Sejtes Györgyi"]
[null,null,"RK3PN-MAG-SZM2","Az anyanyelvtanítás gyakorlata","Szeminárium","Gyakorlati jegy","Kötelező",2,null,null,2,null,2,2,"WR1BAF","Zsigriné dr. Sejtes Györgyi"]
[null,null,"RK3PN-MAG-SZM3","Az irodalomtanítás gyakorlata ","Szeminárium","Gyakorlati jegy","Kötelező",2,null,null,2,null,2,2,"WR1BAF","Zsigriné dr. Sejtes Györgyi"]
["MK-SZV",null,null,"Szabadon választható tárgyak","Nincs megadva","Nincs megadva","Kötelező",null,null,null,2,2,4]
[null,null,"RK3PN-MAG-SZV1","Statisztikai módszerek a nyelvtudományban","Előadás","Kollokvium","Kötelezően választható",2,null,null,2,null,2,2,"M9QMTA","Németh Zsuzsanna"]
[null,null,"RK3PN-MAG-SZV2","Mesterséges intelligencia","Szeminárium","Gyakorlati jegy","Kötelezően választható",2,null,null,2,null,2,2,"F7VBEE","Szécsényi Tibor"]
[null,null,"RK3PN-MAG-SZV3","Finn nyelv","Szeminárium","Gyakorlati jegy","Kötelezően választható",2,null,null,null,2,2,3,"PMYQE3","Sipőcz Katalin"]
[null,null,"RK3PN-MAG-SZV4","Társalgáselemzés","Szeminárium","Gyakorlati jegy","Kötelezően választható",2,null,null,null,2,2,3,"M9QMTA","Németh Zsuzsanna"]
[]
[{"$nulls":8},"Előírt kredit:",30,30,26,86]
[{"$nulls":8},"Számolt kredit:",{"$f":"SUM(J6:J44)","v":30},{"$f":"SUM(K6:K44)","v":30},{"$f":"SUM(L6:L44)","v":26}]
[]
["KÉPZÉS kódja, neve:","MTKBMAG_3P_L_2024",{"$f":"VLOOKUP($B$53,Segédlap!A:B,2,0)","v":"magyar nyelv és irodalom szakos tanár (tanítóknak)"}]
["Tanári KKK:","https://uj.jogtar.hu/#doc/db/1/id/A1300008.EMM/ts/20230901/lr/chain9131"]
["MÉRFÖLDKŐ (önálló csoportosító sor) KÓDJA","TÁRGYCSOPORT KÓDJA","TÁRGYKÓD","MK/TCS/tárgy NEVE/CÍME","TÁRGY TÍPUSA","TÁRGY-KÖVETELMÉNY","FELVÉTEL TÍPUSA","ÓRASZÁM",null,"FÉLÉV ÉS KREDIT",null,null,"KREDIT-SZÁM","Ajánlott félév","TÁRGY(CSOPORT)-FELELŐS Neptun kódja","TÁRGY(CSOPORT)-FELELŐS neve","VÉGLEGES IDŐSZAK (TELJESÍTÉS)","VÉGLEGES IDŐSZAK (FELVÉTEL)","ELŐZETES VIZSGAFELTÉTEL"]
[{"$nulls":7},"heti","féléves","1.","2.","3."]
["MK-KOT",null,null,"Kötelező szakmai tárgyak","Nincs megadva","Nincs megadva","Kötelező",{"$nulls":5},76]
[null,"TCS-RK3PL-MAG-KOT"]
[null,null,"RK3PL-MAG-KOT1"," Bevezetés a nyelvtudományba","Előadás","Kollokvium","Kötelező",null,9,3,null,null,3,1,"BQEUFH","Németh T. Enikő"]
[null,null,"RK3PL-MAG-KOT2","Nyelvtudományi proszeminárium","Szeminárium","Gyakorlati jegy","Kötelező",null,9,2,null,null,2,1,"WR1BAF","Sinkovics Balázs"]
[null,null,"RK3PL-MAG-KOT3","Leíró magyar hangtan szeminárium","Szeminárium","Gyakorlati jegy","Kötelező",null,9,2,null,null,2,1,"WR1BAF","Sinkovics Balázs"]
[null,null,"RK3PL-MAG-KOT4","Szófajtan és alaktan előadás                                                                                     ","Előadás","Kollokvium","Kötelező",null,9,null,2,null,2,2,"FZ2JFS","Berente Anikó"]
[null,null,"RK3PL-MAG-KOT5","Szófajtan és alaktan szeminárium                                                                          ","Szeminárium","Gyakorlati jegy","Kötelező",null,9,null,2,null,2,2,"FZ2JFS","Berente Anikó"]
[null,null,"RK3PL-MAG-KOT6","Mondattan előadás                                                      ","Előadás","Kollokvium","Kötelező",null,9,2,null,null,2,1,"FZ2JFS","Berente Anikó"]
[null,null,"RK3PL-MAG-KOT7","Mondattan szeminárium                                                                             ","Szeminárium","Gyakorlati jegy","Kötelező",null,9,3,null,null,3,1,"FZ2JFS","Berente Anikó"]
[null,null,"RK3PL-MAG-KOT8","Stílus és jelentés","Előadás","Kollokvium","Kötelező",null,9,null,2,null,2,2,"GHO3PX","Schirm Anita"]
[null,null,"RK3PL-MAG-KOT9","Szövegtani ismeretek                                                                                                ","Előadás","Kollokvium","Kötelező",null,9,null,2,null,2,2,"WR1BAF","Zsigriné dr. Sejtes Györgyi"]
[null,null,"RK3PL-MAG-KOT10","Kommunikáció szóban és írásban  ","Szeminárium","Gyakorlati jegy","Kötelező",null,9,null,2,null,2,2,"WR1BAF","Sinkovics Balázs"]
[null,null,"RK3PL-MAG-KOT11","Nyelv és társadalom                           ","Előadás","Kollokvium","Kötelező",null,9,null,3,null,3,2,"EMQWVX","Németh Miklós"]
[null,null,"RK3PL-MAG-KOT12","Nyelvtörténet előadás                                    ","Előadás","Kollokvium","Kötelező",null,9,null,null,3,3,3,"OUAWUI","Forgács Tamás"]
[null,null,"RK3PL-MAG-KOT13","A magyar nyelv történeti változásai az egyes szinteken ","Szeminárium","Gyakorlati jegy","Kötelező",null,9,null,null,3,3,3,"OUAWUI","Forgács Tamás"]
[null,null,"RK3PL-MAG-KOT14","A nyelvleírás fontosabb irányzatai az oktatás gyakorlatában ","Szeminárium","Gyakorlati jegy","Kötelező",null,9,null,null,2,2,3,"GHO3PX","Schirm Anita"]
[null,null,"RK3PL-MAG-KOT15","Lexikológia, lexikográfia és frazeológia","Szeminárium","Gyakorlati jegy","Kötelező",null,9,null,null,2,2,3,"OUAWUI","Forgács Tamás"]
[null,null,"RK3PL-MAG-KOT16","Az irodalomtudomány alapjai ","Előadás","Kollokvium","Kötelező",null,9,3,null,null,3,1,"KFAICJ","Hansági Ágnes"]
[null,null,"RK3PL-MAG-KOT17","Az irodalomtudományi ismeretszerzés alapjai (proszeminárium)","Szeminárium","Gyakorlati jegy","Kötelező",null,9,2,null,null,2,1,"SEQOIT","Latzkovits Miklós"]
[null,null,"RK3PL-MAG-KOT18","Bevezetés a műelemzésbe","Szeminárium","Gyakorlati jegy","Kötelező",null,9,null,2,null,2,2,"KFAICJ","Hansági Ágnes"]
[null,null,"RK3PL-MAG-KOT19","Világirodalom előadás 1. ","Előadás","Kollokvium","Kötelező",null,9,3,null,null,3,1,"BGWKTE","Kelemen Zoltán"]
[null,null,"RK3PL-MAG-KOT20","Világirodalom előadás 2. ","Előadás","Kollokvium","Kötelező",null,9,null,3,null,3,2,"BGWKTE","Kelemen Zoltán "]
[null,null,"RK3PL-MAG-KOT21","Világirodalom szeminárium 1. ","Szeminárium","Gyakorlati jegy","Kötelező",null,9,2,null,null,2,1,"BGWKTE","Kelemen Zoltán "]
[null,null,"RK3PL-MAG-KOT22","Világirodalom szeminárium 2.","Szeminárium","Gyakorlati jegy","Kötelező",null,9,null,null,2,2,3,"BGWKTE","Kelemen Zoltán "]
[null,null,"RK3PL-MAG-KOT23","Régi magyar irodalom előadás ","Előadás","Kollokvium","Kötelező",null,9,3,null,null,3,1,"SEQOIT","Latzkovits Miklós"]
[null,null,"RK3PL-MAG-KOT24","Régi magyar irodalom szeminárium","Szeminárium","Gyakorlati jegy","Kötelező",null,9,null,2,null,2,2,"SEQOIT","Latzkovits Miklós"]
[null,null,"RK3PL-MAG-KOT25","Klasszikus magyar irodalom előadás ","Előadás","Kollokvium","Kötelező",null,9,3,null,null,3,1,"J4XSEZ","Hász-Fehér Katalin "]
[null,null,"RK3PL-MAG-KOT26","Klasszikus magyar irodalom szeminárium ","Szeminárium","Gyakorlati jegy","Kötelező",null,9,null,2,null,2,2,"KFAICJ","Hansági Ágnes"]
[null,null,"RK3PL-MAG-KOT27","Modern magyar irodalom előadás","Előadás","Kollokvium","Kötelező",null,9,null,null,3,3,3,"SPNCNW","Szilágyi Zsófia"]
[null,null,"RK3PL-MAG-KOT28","Modern magyar irodalom szeminárium ","Szeminárium","Gyakorlati jegy","Kötelező",null,9,null,null,2,2,3,"SPNCNW","Szilágyi Zsófia"]
[null,null,"RK3PL-MAG-KOT29","Kortárs magyar irodalom szeminárium","Szeminárium","Gyakorlati jegy","Kötelező",null,9,null,null,3,3,3,"FODBN0","Virág Zoltán "]
[null,null,"RK3PL-MAG-KOT30","Műelemzések szeminárium 1. ","Szeminárium","Gyakorlati jegy","Kötelező",null,9,null,2,null,2,2,"RVJ3CT","Tóth Ákos"]
[null,null,"RK3PL-MAG-KOT31","Műelemzések szeminárium 2.","Szeminárium","Gyakorlati jegy","Kötelező",null,9,null,null,2,2,3,"OAONGX","Szabó Gábor"]
[null,null,"RK3PL-MAG-KOT32","Gyermek és ifjúsági irodalom szeminárium","Szeminárium","Gyakorlati jegy","Kötelező",null,9,null,null,2,2,3,"KFAICJ","Hansági Ágnes"]
["MK-SZM",null,null,"Szakmódszertan","Nincs megadva","Nincs megadva","Kötelező",{"$nulls":5},6]
[null,null,"RK3PL-MAG-SZM1","A magyar nyelv és irodalom oktatásának elméleti alapjai","Előadás","Kollokvium","Kötelező",null,9,2,null,null,2,1,"WR1BAF","Zsigriné dr. Sejtes Györgyi"]
[null,null,"RK3PL-MAG-SZM2","Az anyanyelvtanítás gyakorlata","Szeminárium","Gyakorlati jegy","Kötelező",null,9,null,2,null,2,2,"WR1BAF","Zsigriné dr. Sejtes Györgyi"]
[null,null,"RK3PL-MAG-SZM3","Az irodalomtanítás gyakorlata ","Szeminárium","Gyakorlati jegy","Kötelező",null,9,null,2,null,2,2,"WR1BAF","Zsigriné dr. Sejtes Györgyi"]
["MK-SZV",null,null,"Szabadon választható tárgyak","Nincs megadva","Nincs megadva","Kötelező",null,null,null,2,2,4]
[null,null,"RK3PL-MAG-SZV1","Statisztikai módszerek a nyelvtudományban","Előadás","Kollokvium","Kötelezően választható",null,9,null,2,null,2,2,"M9QMTA","Németh Zsuzsanna"]
[null,null,"RK3PL-MAG-SZV2","Mesterséges intelligencia","Szeminárium","Gyakorlati jegy","Kötelezően választható",null,9,null,2,null,2,2,"F7VBEE","Szécsényi Tibor"]
[null,null,"RK3PL-MAG-SZV3","Finn nyelv","Szeminárium","Gyakorlati jegy","Kötelezően választható",null,9,null,null,2,2,3,"PMYQE3","Sipőcz Katalin"]
[null,null,"RK3PL-MAG-SZV4","Társalgáselemzés","Szeminárium","Gyakorlati jegy","Kötelezően választható",null,9,null,null,2,2,3,"M9QMTA","Németh Zsuzsanna"]
[]
[{"$nulls":8},"Előírt kredit:",30,30,26,86]
[{"$nulls":8},"Számolt kredit:",{"$f":"SUM(J57:J95)","v":30},{"$f":"SUM(K57:K95)","v":30},26]

{"sheet":"4P","index":5,"n_rows":55,"n_cols":19,"rows_kept":55,"cut":false,"hidden":false,"merged":[[0,0,0,7],[2,2,2,4],[2,8,2,11],[4,0,5,0],[4,1,5,1],[4,2,5,2],[4,3,5,3],[4,4,5,4],[4,17,5,17],[4,18,5,18],[4,5,5,5],[4,6,5,6],[4,7,4,8],[4,9,4,12],[4,13,5,13],[4,14,5,14],[54,0,54,3],[55,0,55,3],[56,0,56,3],[4,15,5,15],[4,16,5,16]]}
["Újabb oklevelet adó tanárképzés tanítói szakképzettséggel (4 félév, 120 kredit)"]
[]
["KÉPZÉS kódja, neve:","MTKBMAG_4P",{"$f":"VLOOKUP($B$3,[3]Segédlap!A:B,2,0)","v":"magyar nyelv és irodalom szakos tanár"},{"$nulls":4},"TAGOZAT:","Mindkettőt megadom egy táblázatban"]
[]
["MÉRFÖLDKŐ (önálló csoportosító sor) KÓDJA","TÁRGYCSOPORT KÓDJA","TÁRGYKÓD","MK/TCS/tárgy NEVE/CÍME","TÁRGY TÍPUSA","TÁRGY-KÖVETELMÉNY","FELVÉTEL TÍPUSA","ÓRASZÁM",null,"FÉLÉV ÉS KREDIT",null,null,null,"KREDIT-SZÁM","TÁRGY(CSOPORT)-FELELŐS Neptun kódja","TÁRGY(CSOPORT)-FELELŐS neve","VÉGLEGES IDŐSZAK (TELJESÍTÉS)","VÉGLEGES IDŐSZAK (FELVÉTEL)","ELŐZETES VIZSGAFELTÉTEL"]
[{"$nulls":7},"heti","féléves","1.","2.","3.","4."]
["MK-KOT",null,null,"Kötelező szakmai tárgyak","nincs megadva","nincs megadva","kötelező",{"$nulls":6},84]
["Nyelvészeti alapozó ismeretek (5 kredit)",null,"RK4P-MAG-KOT01"," Bevezetés a nyelvtudományba","előadás","kollokvium","kötelező",2,9,3,null,null,null,3,"BQEUFH","Németh T. Enikő"]
[null,null,"RK4P-MAG-KOT02","Nyelvtudományi proszeminárium","szeminárium","gyakorlati jegy","kötelező",2,9,2,null,null,null,2,"WR1BAF","Sinkovics Balázs"]
["Nyelvtudományi ismeretek (34 kredit)",null,"RK4P-MAG-KOT03","A magyar nyelv rokonsága     ","szeminárium","gyakorlati jegy","kötelező",2,9,2,null,null,null,2,"PMYQE3","Sipőcz Katalin"]
[null,null,"RK4P-MAG-KOT04","Leíró magyar hangtan szeminárium","szeminárium","gyakorlati jegy","kötelező",2,9,2,null,null,null,2,"WR1BAF","Sinkovics Balázs"]
[null,null,"RK4P-MAG-KOT05","Szófajtan és alaktan előadás                                                                                     ","előadás","kollokvium","kötelező",2,9,null,3,null,null,3,"HEQ6YF","Hoffmann Ildikó"]
[null,null,"RK4P-MAG-KOT06","Mondattan szeminárium                                                                             ","szeminárium","gyakorlati jegy","kötelező",2,9,2,null,null,null,2,"HEQ6YF","Hoffmann Ildikó"]
[null,null,"RK4P-MAG-KOT07","Stílus és jelentés","előadás","kollokvium","kötelező",2,9,null,null,3,null,3,"GHO3PX","Schirm Anita"]
[null,null,"RK4P-MAG-KOT08","Szövegtani ismeretek                                                                                                ","előadás","kollokvium","kötelező",2,9,null,2,null,null,2,"WR1BAF","Zsigriné dr. Sejtes Györgyi"]
[null,null,"RK4P-MAG-KOT09","Szövegelemzés, szövegalkotás","szeminárium","gyakorlati jegy","kötelező",2,9,null,null,2,null,2,"WR1BAF","Zsigriné dr. Sejtes Györgyi"]
[null,null,"RK4P-MAG-KOT10","Pragmatikai ismeretek és kommunikációs stratégiák","előadás","kollokvium","kötelező",2,9,null,null,3,null,3,"BQEUFH","Németh T. Enikő"]
[null,null,"RK4P-MAG-KOT11","Nyelv és társadalom                           ","előadás","kollokvium","kötelező",2,9,null,3,null,null,3,"EMQWVX","Németh Miklós"]
[null,null,"RK4P-MAG-KOT12","Nyelvi jogok, nyelvi diszkrimináció, nyelvi tervezés ","előadás","kollokvium","kötelező",2,9,null,null,2,null,2,"EMQWVX","Németh Miklós"]
[null,null,"RK4P-MAG-KOT13","Nyelvtörténet előadás                                    ","előadás","kollokvium","kötelező",2,9,null,null,3,null,3,"OUAWUI","Forgács Tamás"]
[null,null,"RK4P-MAG-KOT14","A magyar nyelv történeti változásai az egyes szinteken ","szeminárium","gyakorlati jegy","kötelező",2,9,null,null,null,3,3,"OUAWUI","Forgács Tamás"]
[null,null,"RK4P-MAG-KOT15","A nyelvleírás fontosabb irányzatai az oktatás gyakorlatában ","szeminárium","gyakorlati jegy","kötelező",2,9,null,null,null,2,2,"GHO3PX","Schirm Anita"]
[null,null,"RK4P-MAG-KOT16","Lexikológia, lexikográfia és frazeológia","szeminárium","gyakorlati jegy","kötelező",2,9,null,2,null,null,2,"OUAWUI","Forgács Tamás"]
["Irodalomtudományi alapozó ismeretek (5 kredit)",null,"RK4P-MAG-KOT17","Az irodalomtudomány alapjai ","előadás","kollokvium","kötelező",2,9,3,null,null,null,3,"KFAICJ","Hansági Ágnes"]
[null,null,"RK4P-MAG-KOT18","Az irodalomtudományi ismeretszerzés alapjai (proszeminárium)","szeminárium","gyakorlati jegy","kötelező",2,9,2,null,null,null,2,"SEQOIT","Latzkovits Miklós"]
["Irodalomtudományi ismeretek (40 kredit)",null,"RK4P-MAG-KOT19","Irodalomelmélet előadás 1. ","előadás","kollokvium","kötelező",2,9,null,3,null,null,3,"DQSVVR","Fogarasi György "]
[null,null,"RK4P-MAG-KOT20","Irodalomelmélet előadás 2","előadás","kollokvium","kötelező",2,9,null,null,null,3,3,"DQSVVR","Fogarasi György "]
[null,null,"RK4P-MAG-KOT21","Bevezetés a műelemzésbe","szeminárium","gyakorlati jegy","kötelező",2,9,3,null,null,null,3,"KFAICJ","Hansági Ágnes"]
[null,null,"RK4P-MAG-KOT22","Világirodalom előadás 1. ","előadás","kollokvium","kötelező",2,9,null,3,null,null,3,"BGWKTE","Kelemen Zoltán "]
[null,null,"RK4P-MAG-KOT23","Világirodalom előadás 2. ","előadás","kollokvium","kötelező",2,9,null,null,null,3,3,"BGWKTE","Kelemen Zoltán "]
[null,null,"RK4P-MAG-KOT24","Világirodalom szeminárium 1. ","szeminárium","gyakorlati jegy","kötelező",2,9,2,null,null,null,2,"BGWKTE","Kelemen Zoltán "]
[null,null,"RK4P-MAG-KOT25","Világirodalom szeminárium 2.","szeminárium","gyakorlati jegy","kötelező",2,9,null,null,2,null,3,"BGWKTE","Kelemen Zoltán "]
[null,null,"RK4P-MAG-KOT26","Régi magyar irodalom előadás ","előadás","kollokvium","kötelező",2,9,3,null,null,null,3,"SEQOIT","Latzkovits Miklós"]
[null,null,"RK4P-MAG-KOT27","Régi magyar irodalom szeminárium","szeminárium","gyakorlati jegy","kötelező",2,9,null,2,null,null,2,"SEQOIT","Latzkovits Miklós"]
[null,null,"RK4P-MAG-KOT28","Klasszikus magyar irodalom előadás ","előadás","kollokvium","kötelező",2,9,3,null,null,null,3,"J4XSEZ","Hász-Fehér Katalin "]
[null,null,"RK4P-MAG-KOT29","Klasszikus magyar irodalom szeminárium ","szeminárium","gyakorlati jegy","kötelező",2,9,null,2,null,null,2,"KFAICJ","Hansági Ágnes"]
[null,null,"RK4P-MAG-KOT30","Modern magyar irodalom előadás","előadás","kollokvium","kötelező",2,9,null,null,3,null,3,"SPNCNW","Szilágyi Zsófia "]
[null,null,"RK4P-MAG-KOT31","Modern magyar irodalom szeminárium ","szeminárium","gyakorlati jegy","kötelező",2,9,null,null,null,2,2,"SPNCNW","Szilágyi Zsófia "]
[null,null,"RK4P-MAG-KOT32","Műelemzések szeminárium 1. ","szeminárium","gyakorlati jegy","kötelező",2,9,null,3,null,null,3,"RVJ3CT","Tóth Ákos "]
[null,null,"RK4P-MAG-KOT33","Műelemzések szeminárium 2.","szeminárium","gyakorlati jegy","kötelező",2,9,null,null,2,null,2,"OAONGX","Szabó Gábor"]
["MK-SZM",null,null,"Szakmódszertan","nincs megadva","nincs megadva","kötelező",{"$nulls":6},8]
[null,null,"RK4P-MAG-SZM1","Az irodalomtanítás elméleti alapjai","szeminárium","gyakorlati jegy","kötelező",2,9,2,null,null,null,2,"WR1BAF","Zsigriné dr. Sejtes Györgyi"]
[null,null,"RK4P-MAG-SZM2","Az anyanyelvtanítás elméleti alapjai","szeminárium","gyakorlati jegy","kötelező",2,9,null,2,null,null,2,"WR1BAF","Zsigriné dr. Sejtes Györgyi"]
[null,null,"RK4P-MAG-SZM3","Az anyanyelvtanítás gyakorlata","szeminárium","gyakorlati jegy","kötelező",2,9,null,null,2,null,2,"WR1BAF","Zsigriné dr. Sejtes Györgyi"]
[null,null,"RK4P-MAG-SZM4","Az irodalomtanítás gyakorlata ","szeminárium","gyakorlati jegy","kötelező",2,9,null,null,null,2,2,"WR1BAF","Zsigriné dr. Sejtes Györgyi"]
["MK-TGY",null,null,"Szakterületi tanítási gyakorlat","nincs megadva","nincs megadva","kötelező",{"$nulls":4},2,null,2]
["MK-SZV",null,null,"Szabadon választható tárgyak*","nincs megadva","nincs megadva","kötelező",null,null,null,2,4,null,6]
[null,null,"RK4P-MAG-SZV01","Finn nyelv","szeminárium","gyakorlati jegy","szabadon választható",2,9,null,2,null,null,2,"PMYQE3","Sipőcz Katalin"]
[null,null,"RK4P-MAG-SZV02","Társalgáselemzés","szeminárium","gyakorlati jegy","szabadon választható",2,9,null,2,null,null,2,"M9QMTA","Németh Zsuzsanna"]
[null,null,"RK4P-MAG-SZV03","A nyelvleírás alapjai","előadás","kollokvium","szabadon választható",2,9,null,null,2,null,2,"M9QMTA","Németh Zsuzsanna"]
[null,null,"RK4P-MAG-SZV04","Számítógépes nyelvészet","szeminárium","gyakorlati jegy","szabadon választható",2,9,null,null,2,null,2,"F7VBEE","Szécsényi Tibor"]
[null,null,"RK4P-MAG-SZV05","A közvetlen emberi kommunikáció elméletei","előadás","kollokvium","szabadon választható",2,9,null,null,2,null,2,"EO1Q87","Mártonné dr. Ivaskó Lívia"]
[]
[{"$nulls":8},"Előírt kredit:",30,30,30,10,100]
[{"$nulls":8},"Számolt kredit:",{"$f":"SUM(J7:J53)","v":29},{"$f":"SUM(K7:K47)","v":27},{"$f":"SUM(L7:L47)","v":28},{"$f":"SUM(M7:M53)","v":15}]

{"sheet":"Segédlap","index":6,"n_rows":28,"n_cols":15,"rows_kept":28,"cut":false,"hidden":true,"merged":[[0,12,1,12],[0,13,1,13],[0,14,1,14]]}
["Szakkód","Szakok","Kredit",null,"TAGOZAT",{"$nulls":5},"SZAKOK",null,"TÁRGY TÍPUSA","TÁRGY-KÖVETELMÉNY","FELVÉTEL TÍPUSA"]
["MTKBANG_2B_L_2024","angol nyelv és kultúra tanára (alapszakos diplomával)",60,null,"Nappali",{"$nulls":5},"angol nyelv és kultúra szaktanára"]
["MTKBANG_2B_N_2024","angol nyelv és kultúra tanára (alapszakos diplomával)",60,null,"Levelező",{"$nulls":5},"angol nyelv és kultúra tanára",null,"Előadás","Kollokvium","Kötelező"]
["MTKBMAG_2B_L_2024","magyar nyelv és irodalom szakos tanár (alapszakos diplomával)",60,{"$nulls":7},"dráma- és színházismeret-tanár",null,"Szeminárium","Gyakorlati jegy","Kötelezően választható"]
["MTKBMAG_2B_N_2024","magyar nyelv és irodalom szakos tanár (alapszakos diplomával)",60,{"$nulls":7},"etikatanár",null,"Gyakorlat","Minősített aláírás","Szabadon választható"]
["MTKBNEK_2B_L_2024","német nyelv és kultúra tanára (alapszakos diplomával)",60,{"$nulls":7},"filozófiatanár",null,"Labor","Alapvizsga"]
["MTKBNEK_2B_N_2024","német nyelv és kultúra tanára (alapszakos diplomával)",60,{"$nulls":7},"francia nyelv és kultúra szaktanára",null,"Önálló vizsga","Szigorlat"]
["MTKBTOR_2B_L_2024","történelemtanár (alapszakos diplomával)",60,{"$nulls":7},"francia nyelv és kultúra tanára",null,"Nincs megadva","Aláírás"]
["MTKBTOR_2B_N_2024","történelemtanár (alapszakos diplomával)",60,{"$nulls":7},"latin nyelv és kultúra szaktanára",null,null,"Nincs megadva"]
["MTKBSZE_3B_L_2022","szerb és nemzetiségi szerb nyelv és kultúra tanára (alapszakos diplomával)",90,{"$nulls":7},"latin nyelv és kultúra tanára"]
["MTKBSZE_3B_N_2022","szerb és nemzetiségi szerb nyelv és kultúra tanára (alapszakos diplomával)",90]
["MTKBANG_3T_L_2024","angol nyelv és kultúra tanára (más tanári)",90]
["MTKBANG_3T_N_2024","angol nyelv és kultúra tanára (más tanári)",90,{"$nulls":7},"magyar nyelv és irodalom szakos szaktanár"]
["MTKBMAG_3T_L_2024","magyar nyelv és irodalom szakos tanár (más tanári)",90,{"$nulls":7},"magyar nyelv és irodalom szakos tanár"]
["MTKBMAG_3T_N_2024","magyar nyelv és irodalom szakos tanár (más tanári)",90,{"$nulls":7},"mozgóképkultúra és médiaismeret-tanár"]
["MTKBNEK_3T_L_2024","német nyelv és kultúra tanára (más tanári)",90,{"$nulls":7},"német nyelv és kultúra szaktanára"]
["MTKBNEK_3T_N_2024","német nyelv és kultúra tanára (más tanári)",90,{"$nulls":7},"német nyelv és kultúra tanára"]
["MTKBTOR_3T_L_2024","történelemtanár (más tanári)",90,{"$nulls":7},"olasz nyelv és kultúra szaktanára"]
["MTKBTOR_3T_N_2024","történelemtanár (más tanári)",90,{"$nulls":7},"olasz nyelv és kultúra tanára"]
["MTKBANG_3P_L_2024","angol nyelv és kultúra tanára (tanítóknak)",90,{"$nulls":7},"orosz nyelv és kultúra szaktanára"]
["MTKBANG_3P_N_2024","angol nyelv és kultúra tanára (tanítóknak)",90,{"$nulls":7},"orosz nyelv és kultúra tanára"]
["MTKBMAG_3P_L_2024","magyar nyelv és irodalom szakos tanár (tanítóknak)",90,{"$nulls":7},"pedagógiatanár"]
["MTKBMAG_3P_N_2024","magyar nyelv és irodalom szakos tanár (tanítóknak)",90,{"$nulls":7},"spanyol nyelv és kultúra szaktanára"]
["MTKBNEK_3P_L_2024","német nyelv és kultúra tanára (tanítóknak)",90,{"$nulls":7},"spanyol nyelv és kultúra tanára"]
["MTKBNEK_3P_N_2024","német nyelv és kultúra tanára (tanítóknak)",90,{"$nulls":7},"szerb és nemzetiségi szerb nyelv és kultúra szaktanára"]
["MTKBTOR_3P_L_2024","történelemtanár (tanítóknak)",90,{"$nulls":7},"szerb és nemzetiségi szerb nyelv és kultúra tanára"]
["MTKBTOR_3P_N_2024","történelemtanár (tanítóknak)",90,{"$nulls":7},"történelem szaktanár"]
[{"$nulls":10},"történelemtanár"]